lending/lending_fUSD_20241229
["ID","MTS","AMOUNT","RATE_DAILY","PERIOD"]
[347101472,1735498244822,-500.0,0.00017397,2]
[347101473,1735498244831,-500.0,0.00017397,2]
[347101474,1735498244841,-616.36,0.00017397,2]
[347101475,1735498244851,-500.0,0.00017397,2]
[347101476,1735498244860,-500.0,0.00017397,2]
[347101477,1735498244869,-500.0,0.00017397,2]
[347101478,1735498244878,-557.18,0.00017397,2]
[347101479,1735498244888,-500.0,0.00017397,2]
[347101480,1735498244898,-588.42,0.00017397,2]
[347101481,1735498244907,-500.0,0.00017397,2]
[347101482,1735498244921,-500.0,0.00017397,2]
[347101483,1735498244931,-500.0,0.00017397,2]
[347101484,1735498244941,-924.01,0.00017397,2]
[347101485,1735498244950,-374.41617947,0.00017397,2]
[347101486,1735498244960,-624.33512726,0.00017397,2]
[347101487,1735498244970,-1348.5313,0.00017398,2]
[347101488,1735498244979,-5001.484249,0.00017398,2]
[347101489,1735498244989,-723.25,0.00017398,2]
[347101490,1735498245002,-1864.42,0.00017399,2]
[347101491,1735498245012,-239.040004,0.00017399,2]
[347101492,1735498245022,-500.0,0.00017399,2]
[347101493,1735498245031,-500.0,0.00017399,2]
[347101494,1735498245041,-779.0,0.000174,2]
[347101495,1735498245050,-344979.33,0.000174,2]
[347101496,1735498245060,-1159434.46491313,0.000174,2]
[347101497,1735498245070,-200.0,0.000174,2]
[347101498,1735498245081,-2000.0,0.000174,2]
[347101499,1735498245092,-200.0,0.000174,2]
[347101500,1735498245102,-1334.0548,0.000174,2]
[347101501,1735498245112,-2000.0,0.0001741,2]
[347101502,1735498245122,-3680.265405,0.0001742,2]
[347101503,1735498245131,-1260.99671309,0.00017425,2]
[347101504,1735498245141,-695.21226411,0.00017425,2]
[347101505,1735498245151,-157.62458914,0.00017425,2]
[347101506,1735498245160,-1000.0,0.00017425,2]
[347101507,1735498245170,-250.0,0.00017435,2]
[347101508,1735498245179,-1000.0,0.00017452,2]
[347101509,1735498245189,-5001.75915985,0.00017475,2]
[347101510,1735498245199,-5000.0,0.00017475,2]
[347101511,1735498245208,-5000.0,0.00017475,2]
[347101512,1735498245218,-5000.0,0.00017475,2]
[347101513,1735498245228,-5005.7528909,0.00017475,2]
[347101514,1735498245237,-207.0845042,0.00017479,2]
[347101515,1735498245247,-164.76366306,0.00017479,2]
[347101516,1735498245256,-374.41617947,0.00017479,2]
[347101517,1735498245266,-624.33512726,0.00017479,2]
[347101518,1735498245276,-1000.0,0.0001748,2]
[347101519,1735498245285,-237.12,0.0001749,2]
[347101520,1735498245295,-192.95,0.0001749,2]
[347101521,1735498245304,-362.13,0.0001749,2]
[347101522,1735498245314,-500.0,0.0001749,2]
[347101523,1735498245324,-242.29,0.0001749,2]
[347101524,1735498245333,-266.6,0.0001749,2]
[347101525,1735498245342,-497.59,0.0001749,2]
[347101526,1735498245354,-500.75,0.0001749,2]
[347101527,1735498245363,-500.0,0.0001749,2]
[347101528,1735498245373,-156.79,0.0001749,2]
[347101529,1735498245384,-500.0,0.0001749,2]
[347101530,1735498245393,-500.0,0.0001749,2]
[347101531,1735498245402,-240.4,0.0001749,2]
[347101532,1735498245411,-403.93,0.0001749,2]
[347101533,1735498245421,-329.1,0.0001749,2]
[347101534,1735498245431,-416.94,0.0001749,2]
[347101535,1735498245441,-421.38,0.0001749,2]
[347101536,1735498245450,-528.63,0.0001749,2]
[347101537,1735498245459,-396.01,0.0001749,2]
[347101538,1735498245468,-227.46,0.0001749,2]
[347101539,1735498245477,-493.77,0.0001749,2]
[347101540,1735498245487,-500.0,0.0001749,2]
[347101541,1735498245495,-500.0,0.0001749,2]
[347101542,1735498245504,-500.0,0.0001749,2]
[347101543,1735498245518,-500.0,0.0001749,2]
[347101544,1735498245532,-500.0,0.0001749,2]
[347101545,1735498245541,-500.0,0.0001749,2]
[347101546,1735498245551,-485.3,0.0001749,2]
[347101547,1735498245560,-173.67,0.0001749,2]
[347101548,1735498245569,-349.94,0.0001749,2]
[347101549,1735498245578,-558.31,0.0001749,2]
[347101550,1735498245587,-256.07,0.0001749,2]
[347101551,1735498245598,-500.0,0.0001749,2]
[347101552,1735498245608,-344.53,0.0001749,2]
[347101553,1735498245618,-285.67,0.0001749,2]
[347101554,1735498245627,-500.0,0.0001749,2]
[347101555,1735498245637,-500.0,0.0001749,2]
[347101556,1735498245646,-645.81,0.0001749,2]
[347101557,1735498245656,-500.0,0.0001749,2]
[347101558,1735498245665,-500.0,0.0001749,2]
[347101559,1735498245675,-500.0,0.0001749,2]
[347101560,1735498245684,-234.78,0.0001749,2]
[347101561,1735498245694,-428314.76929519,0.000175,2]
[347101562,1735498245703,-1000.0,0.000175,2]
[347101563,1735498245712,-365.0,0.000175,2]
[347101564,1735498245722,-8208.19,0.000175,2]
[347101565,1735498245731,-1260.99671309,0.00017507,2]
[347101566,1735498245740,-695.21226411,0.00017507,2]
[347101567,1735498245749,-500.0,0.00017507,2]
[347101568,1735498245759,-1344.0,0.00017508,7]
[347101569,1735498245768,-1344.0,0.00017508,7]
[347101570,1735498245778,-150.0,0.00017519,2]
[347101571,1735498245787,-997.07,0.00017557,2]
[347101572,1735498245796,-1358.06,0.00017558,2]
[347101573,1735498245805,-2080.91,0.00017558,2]
[347101574,1735498245815,-920.38,0.00017558,2]
[347101575,1735498245824,-207.0845042,0.00017562,2]
[347101576,1735498245833,-157.62458914,0.00017562,2]
[347101577,1735498245843,-374.41617947,0.00017562,2]
[347101578,1735498245853,-624.33512726,0.00017562,2]
[347101579,1735498245863,-200.0,0.00017574,2]
[347101580,1735498245872,-200.0,0.00017574,2]
[347101581,1735498245880,-903.13,0.00017588,2]
[347101582,1735498245890,-500.0,0.00017588,2]
[347101583,1735498245899,-1260.99671309,0.00017589,2]
[347101584,1735498245909,-695.21226411,0.00017589,2]
[347101585,1735498245919,-164.76366306,0.00017589,2]
[347101586,1735498245928,-1000.0,0.000176,2]
[347101587,1735498245938,-230.0,0.000176,2]
[347101588,1735498245947,-500.0,0.00017604,2]
[347101589,1735498245956,-455.3,0.00017604,2]
[347101590,1735498245966,-500.0,0.00017604,2]
[347101591,1735498245976,-500.0,0.00017604,2]
[347101592,1735498246027,-424.6,0.00017604,2]
[347101593,1735498246036,-500.0,0.00017604,2]
[347101594,1735498246047,-500.0,0.00017604,2]
[347101596,1735498246055,-500.0,0.00017604,2]
[347101597,1735498246064,-500.0,0.00017604,2]
[347101599,1735498246074,-375.91,0.00017604,2]
[347101600,1735498246083,-150.0,0.00017607,2]
[347101602,1735498246092,-500.0,0.00017643,2]
[347101604,1735498246102,-758.5,0.00017643,2]
[347101605,1735498246112,-500.0,0.00017643,2]
[347101607,1735498246122,-500.0,0.00017643,2]
[347101608,1735498246131,-1199.92,0.00017643,2]
[347101610,1735498246141,-500.0,0.00017643,2]
[347101612,1735498246150,-430.94,0.00017643,2]
[347101613,1735498246159,-207.0845042,0.00017644,2]
[347101615,1735498246169,-374.41617947,0.00017644,2]
[347101617,1735498246178,-624.33512726,0.00017644,2]
[347101618,1735498246187,-500.0,0.00017671,2]
[347101620,1735498246196,-500.0,0.00017671,2]
[347101622,1735498246205,-500.0,0.00017671,2]
[347101623,1735498246215,-500.0,0.00017671,2]
[347101625,1735498246223,-500.0,0.00017671,2]
[347101626,1735498246233,-500.0,0.00017671,2]
[347101628,1735498246242,-560.87,0.00017671,2]
[347101630,1735498246251,-356.940221,0.00017671,2]
[347101631,1735498246260,-290.995413,0.00017671,2]
[347101633,1735498246269,-500.0,0.00017671,2]
[347101635,1735498246279,-500.0,0.00017671,2]
[347101636,1735498246288,-616.36,0.00017671,2]
[347101637,1735498246297,-500.0,0.00017671,2]
[347101638,1735498246305,-500.0,0.00017671,2]
[347101639,1735498246315,-557.18,0.00017671,2]
[347101640,1735498246324,-500.0,0.00017671,2]
[347101642,1735498246333,-500.0,0.00017671,2]
[347101644,1735498246342,-924.01,0.00017671,2]
[347101646,1735498246352,-1260.99671309,0.00017671,2]
[347101648,1735498246361,-695.21226411,0.00017671,2]
[347101649,1735498246371,-500.0,0.00017673,2]
[347101650,1735498246382,-500.0,0.00017673,2]
[347101651,1735498246391,-164.76366306,0.00017699,2]
[347101652,1735498246400,-157.62458914,0.00017699,2]
[347101653,1735498246410,-296.1025871,0.000177,2]
[347101654,1735498246419,-204.5803165,0.000177,2]
[347101655,1735498246429,-296.43677149,0.000177,3]
[347101656,1735498246438,-16143.76183342,0.00017726,2]
[347101657,1735498246447,-207.0845042,0.00017726,2]
[347101658,1735498246457,-374.41617947,0.00017726,2]
[347101659,1735498246466,-624.33512726,0.00017726,2]
[347101660,1735498246475,-150.0,0.0001773,2]
[347101661,1735498246485,-150.0,0.0001773,2]
[347101662,1735498246514,-150.0,0.00017731,2]
[347101663,1735498246523,-150.0,0.00017733,2]
[347101664,1735498246533,-200.0,0.0001775,2]
[347101665,1735498246542,-200.0,0.0001775,2]
[347101666,1735498246554,-150.0,0.00017759,2]
[347101667,1735498246563,-150.0,0.00017761,2]
[347101668,1735498246572,-150.0,0.00017762,2]
[347101669,1735498246582,-150.0,0.00017763,2]
[347101671,1735498246591,-608.94,0.00017764,2]
[347101673,1735498246601,-373.6,0.00017764,2]
[347101675,1735498246611,-246.73,0.00017764,2]
[347101677,1735498246620,-322.04,0.00017764,2]
[347101679,1735498246629,-182.17,0.00017764,2]
[347101680,1735498246639,-306.03,0.00017764,2]
[347101681,1735498246650,-163.16,0.00017764,2]
[347101682,1735498246659,-235.24795532,0.00017764,2]
[347101683,1735498246669,-466.78,0.00017764,2]
[347101684,1735498246678,-213.81,0.00017764,2]
[347101685,1735498246687,-632.31,0.00017764,2]
[347101686,1735498246696,-500.0,0.00017764,2]
[347101687,1735498246705,-500.0,0.00017764,2]
[347101688,1735498246715,-500.0,0.00017764,2]
[347101689,1735498246724,-500.0,0.00017764,2]
[347101690,1735498246733,-500.0,0.00017764,2]
[347101691,1735498246742,-150.0,0.00017768,2]
[347101692,1735498246751,-1000.0,0.0001777,2]
[347101693,1735498246760,-150.0,0.00017773,2]
[347101694,1735498246770,-150.0,0.00017777,2]
[347101695,1735498246779,-150.0,0.00017777,2]
[347101696,1735498246788,-1344.0,0.00017781,7]
[347101697,1735498246798,-1344.0,0.00017781,7]
[347101698,1735498246806,-150.0,0.00017789,2]
[347101699,1735498246815,-1797.21442197,0.0001779,20]
[347101700,1735498246824,-150.0,0.00017795,2]
[347101701,1735498246833,-150.0,0.00017796,2]
[347101702,1735498246843,-500.0,0.00017799,2]
[347101703,1735498246853,-79749.47635291,0.000178,2]
[347101704,1735498246862,-551.82485405,0.000178,2]
[347101705,1735498246872,-717435.63300041,0.000178,3]
[347101706,1735498246893,-38719.67643115,0.000178,3]
[347101707,1735498246904,-14935.85199795,0.000178,3]
[347101708,1735498246921,-582.27999921,0.000178,3]
[347101709,1735498246932,-633.004498,0.000178,3]
[347101710,1735498246992,-500.0,0.00012626,2]
[347101711,1735498247004,-500.0,0.000129,2]
[347101712,1735498247013,-801.42,0.00015138,2]
[347101713,1735498247023,-7756.93972928,0.000178,3]
[347101714,1735498247034,-396725.34692033,0.000178,3]
[347101715,1735498247044,-1009.0,0.000178,10]
[347101716,1735498247054,-24412.008407,0.000178,2]
[347101717,1735498247063,-24412.008407,0.000178,2]
[347101718,1735498247073,-24412.008407,0.000178,2]
[347101719,1735498247083,-24412.008407,0.000178,2]
[347101720,1735498247092,-24412.008407,0.000178,2]
[347101721,1735498247102,-24412.008407,0.000178,2]
[347101722,1735498247111,-24412.008407,0.000178,2]
[347101723,1735498247121,-24412.008407,0.000178,2]
[347101724,1735498247130,-24412.008407,0.000178,2]
[347101725,1735498247139,-24412.008407,0.000178,2]
[347101726,1735498247148,-24412.008407,0.000178,2]
[347101727,1735498247157,-24412.008407,0.000178,2]
[347101728,1735498247167,-24412.008407,0.000178,2]
[347101729,1735498247176,-24412.008407,0.000178,2]
[347101730,1735498247185,-24412.008407,0.000178,2]
[347101731,1735498247194,-24412.008407,0.000178,2]
[347101732,1735498247203,-24412.008407,0.000178,2]
[347101733,1735498247212,-24412.008407,0.000178,2]
[347101734,1735498247222,-24412.008407,0.000178,2]
[347101735,1735498247231,-24412.008407,0.000178,2]
[347101736,1735498247240,-24412.008407,0.000178,2]
[347101737,1735498247249,-24412.008412,0.000178,2]
[347101738,1735498247259,-6714.52,0.000178,2]
[347101739,1735498247268,-21392.22213772,0.000178,2]
[347101740,1735498247277,-3129.60922769,0.000178,15]
[347101741,1735498247286,-1000.0,0.000178,2]
[347101742,1735498247296,-150.0,0.00017802,2]
[347101743,1735498247306,-150.0,0.00017805,2]
[347101744,1735498247315,-150.0,0.00017806,2]
[347101745,1735498247324,-150.0,0.00017806,2]
[347101746,1735498247333,-207.0845042,0.00017808,2]
[347101747,1735498247343,-164.76366306,0.00017808,2]
[347101748,1735498247353,-157.62458914,0.00017808,2]
[347101749,1735498247363,-374.41617947,0.00017808,2]
[347101750,1735498247372,-624.33512726,0.00017808,2]
[347101751,1735498247382,-150.0,0.00017821,2]
[347101752,1735498247391,-150.0,0.00017824,2]
[347101753,1735498247401,-151.0,0.00017826,2]
[347101754,1735498247410,-1000.0,0.00017826,2]
[347101755,1735498247419,-1000.0,0.00017826,2]
[347101756,1735498247428,-1000.0,0.00017826,2]
[347101757,1735498247437,-1000.0,0.00017826,2]
[347101758,1735498247447,-1000.0,0.00017826,2]
[347101759,1735498247456,-1000.0,0.00017826,2]
[347101760,1735498247465,-1000.0,0.00017826,2]
[347101761,1735498247474,-1000.0,0.00017826,2]
[347101762,1735498247483,-1000.0,0.00017826,2]
[347101763,1735498247492,-1000.0,0.00017826,2]
[347101764,1735498247502,-1000.0,0.00017826,2]
[347101765,1735498247511,-1000.0,0.00017826,2]
[347101766,1735498247520,-1000.0,0.00017826,2]
[347101767,1735498247529,-1000.0,0.00017826,2]
[347101768,1735498247538,-1000.0,0.00017826,2]
[347101769,1735498247547,-1000.0,0.00017826,2]
[347101770,1735498247556,-1000.0,0.00017826,2]
[347101771,1735498247565,-1000.0,0.00017826,2]
[347101772,1735498247574,-1000.0,0.00017826,2]
[347101773,1735498247584,-1000.0,0.00017826,2]
[347101774,1735498247594,-997.07,0.00017831,2]
[347101775,1735498247605,-1358.06,0.00017832,2]
[347101776,1735498247614,-2080.91,0.00017832,2]
[347101777,1735498247624,-150.0,0.00017832,2]
[347101778,1735498247633,-920.38,0.00017832,2]
[347101779,1735498247642,-151.3553626,0.00017835,2]
[347101780,1735498247652,-150.0,0.00017836,2]
[347101781,1735498247662,-1138.0,0.00017836,2]
[347101782,1735498247671,-504.0,0.00017836,2]
[347101783,1735498247680,-231.01,0.00017838,2]
[347101784,1735498247690,-515.49,0.0001784,2]
[347101785,1735498247699,-150.0,0.00017844,2]
[347101786,1735498247708,-150.0,0.00017849,2]
[347101787,1735498247717,-4500.0,0.0001785,2]
[347101788,1735498247727,-903.13,0.00017862,2]
[347101789,1735498247736,-506.43767968,0.00017862,2]
[347101790,1735498247746,-150.0,0.00017867,2]
[347101791,1735498247755,-150.0,0.00017873,2]
[347101792,1735498247764,-150.0,0.00017873,2]
[347101793,1735498247774,-150.0,0.00017875,2]
[347101794,1735498247783,-150.0,0.00017877,2]
[347101795,1735498247792,-150.0,0.00017878,2]
[347101796,1735498247801,-500.0,0.00017878,2]
[347101797,1735498247810,-500.0,0.00017878,2]
[347101798,1735498247819,-367.03,0.00017878,2]
[347101799,1735498247828,-500.0,0.00017878,2]
[347101800,1735498247838,-500.0,0.00017878,2]
[347101801,1735498247847,-500.0,0.00017878,2]
[347101802,1735498247857,-410.69,0.00017878,2]
[347101803,1735498247867,-150.0,0.00017879,2]
[347101804,1735498247876,-147635.0,0.0001788,2]
[347101805,1735498247886,-59617.0,0.0001788,2]
[347101806,1735498247895,-150.0,0.00017891,2]
[347101807,1735498247904,-1000.0,0.00017892,2]
[347101808,1735498247913,-13527.11912549,0.00017897,2]
[347101809,1735498247922,-7181.42952269,0.000179,3]
[347101810,1735498247931,-2922.01683534,0.000179,7]
[347101811,1735498247941,-690474.59710964,0.000179,3]
[347101812,1735498247950,-5391.60963902,0.000179,5]
[347101813,1735498247959,-4500.0,0.000179,2]
[347101814,1735498247969,-151.0,0.000179,2]
[347101815,1735498247978,-151.279847,0.000179,2]
[347101816,1735498247987,-150.0,0.00017905,2]
[347101817,1735498247996,-150.0,0.0001791,2]
[347101818,1735498248006,-150.0,0.00017917,2]
[347101819,1735498248015,-500.0,0.00017917,2]
[347101820,1735498248024,-758.5,0.00017917,2]
[347101821,1735498248033,-500.0,0.00017917,2]
[347101822,1735498248042,-500.0,0.00017917,2]
[347101823,1735498248053,-1199.92,0.00017917,2]
[347101824,1735498248063,-623.94,0.00017917,2]
[347101825,1735498248072,-800.0,0.00017918,2]
[347101826,1735498248082,-200.0,0.00017927,2]
[347101827,1735498248092,-200.0,0.00017927,2]
[347101828,1735498248102,-150.0,0.00017931,2]
[347101829,1735498248112,-150.0,0.00017932,2]
[347101830,1735498248122,-150.0,0.00017937,2]
[347101831,1735498248132,-150.0,0.00017944,2]
[347101832,1735498248141,-500.0,0.00017945,2]
[347101833,1735498248151,-334.19,0.00017945,2]
[347101834,1735498248160,-440.26,0.00017945,2]
[347101835,1735498248170,-500.0,0.00017945,2]
[347101836,1735498248179,-500.0,0.00017945,2]
[347101837,1735498248189,-193.73,0.00017945,2]
[347101838,1735498248198,-560.87,0.00017945,2]
[347101839,1735498248208,-356.940221,0.00017945,2]
[347101840,1735498248218,-290.995413,0.00017945,2]
[347101841,1735498248227,-265.29,0.00017945,2]
[347101842,1735498248237,-442.74,0.00017945,2]
[347101843,1735498248246,-616.36,0.00017945,2]
[347101844,1735498248256,-645.87,0.00017945,2]
[347101845,1735498248265,-500.0,0.00017945,2]
[347101846,1735498248275,-557.18,0.00017945,2]
[347101847,1735498248286,-500.0,0.00017945,2]
[347101848,1735498248295,-500.0,0.00017945,2]
[347101849,1735498248305,-924.01,0.00017945,2]
[347101850,1735498248315,-500.0,0.00017947,2]
[347101851,1735498248325,-500.0,0.00017947,2]
[347101852,1735498248335,-73014.0,0.0001795,3]
[347101853,1735498248345,-150.0,0.00017957,2]
[347101854,1735498248355,-150.0,0.00017965,2]
[347101855,1735498248366,-150.0,0.00017969,2]
[347101856,1735498248376,-400.0,0.0001797,2]
[347101857,1735498248386,-400.0,0.0001797,2]
[347101858,1735498248396,-400.0,0.0001797,2]
[347101859,1735498248406,-400.0,0.0001797,2]
[347101860,1735498248415,-691.6688761,0.0001797,2]
[347101861,1735498248425,-1000.0,0.0001797,2]
[347101862,1735498248435,-1000.0,0.0001797,2]
[347101863,1735498248444,-1000.0,0.0001797,2]
[347101864,1735498248454,-1000.0,0.0001797,2]
[347101865,1735498248464,-150.0,0.00017972,2]
[347101866,1735498248474,-150.0,0.00017972,2]
[347101867,1735498248484,-150.0,0.00017973,2]
[347101868,1735498248493,-150.0,0.00017973,2]
[347101869,1735498248503,-150.0,0.00017974,2]
[347101870,1735498248513,-150.0,0.00017978,2]
[347101871,1735498248523,-15631.2141557,0.0001798,2]
[347101872,1735498248532,-150.0,0.00017986,2]
[347101873,1735498248542,-150.0,0.00017988,2]
[347101874,1735498248552,-13915.71464429,0.0001799,7]
[347101875,1735498248561,-500.0,0.00018,3]
[347101876,1735498248571,-15772.0,0.00018,5]
[347101877,1735498248580,-39270.23,0.00018,2]
[347101878,1735498248590,-256.16,0.00018,3]
[347101879,1735498248601,-5605.4383989,0.00018,2]
[347101880,1735498248611,-158.84,0.00018,7]
[347101881,1735498248620,-40980.85303662,0.00018,3]
[347101882,1735498248630,-7605.25116247,0.00018,2]
[347101883,1735498248640,-4000.0,0.00018,2]
[347101884,1735498248649,-373.4797246,0.00018,30]
[347101885,1735498248659,-300.0,0.00018,3]
[347101886,1735498248668,-1000.0,0.00018,2]
[347101887,1735498248678,-1000.0,0.00018,2]
[347101888,1735498248687,-1000.0,0.00018,2]
[347101889,1735498248696,-1000.0,0.00018,2]
[347101890,1735498248706,-1000.0,0.00018,2]
[347101891,1735498248715,-1002.43535867,0.00018,2]
[347101892,1735498248724,-1000.0,0.00018,2]
[347101893,1735498248733,-1000.0,0.00018,2]
[347101894,1735498248743,-1000.0,0.00018,2]
[347101895,1735498248753,-1000.0,0.00018,2]
[347101896,1735498248763,-1000.0,0.00018,2]
[347101897,1735498248772,-1000.0,0.00018,2]
[347101898,1735498248782,-1000.0,0.00018,2]
[347101899,1735498248791,-1000.0,0.00018,2]
[347101900,1735498248800,-1000.0,0.00018,2]
[347101901,1735498248810,-1000.0,0.00018,2]
[347101902,1735498248820,-1904.13017969,0.00018,2]
[347101903,1735498248830,-500.0,0.00018,2]
[347101904,1735498248839,-1613.6812139,0.00018,5]
[347101905,1735498248849,-497.0,0.00018,10]
[347101906,1735498248859,-12397.92067829,0.00018,2]
[347101907,1735498248869,-90614.45663451,0.00018,2]
[347101908,1735498248878,-244463.18672694,0.00018,2]
[347101909,1735498248888,-1133.22211555,0.00018,2]
[347101910,1735498248897,-5623.01669493,0.00018,2]
[347101911,1735498248907,-1031.48058743,0.00018,2]
[347101912,1735498248918,-30055.28472592,0.00018,2]
[347101913,1735498248927,-2002.38,0.00018,2]
[347101914,1735498248937,-11727.31694609,0.00018,2]
[347101915,1735498248947,-7000.0,0.00018,7]
[347101916,1735498248957,-220949.86,0.00018,2]
[347101917,1735498248966,-512.4495211,0.00018,2]
[347101918,1735498248976,-600.0,0.00018,2]
[347101919,1735498248985,-804.84986068,0.00018,2]
[347101920,1735498248995,-156.929027,0.00018,2]
[347101921,1735498249009,-2709.1895,0.00018,2]
[347101922,1735498249018,-2709.1895,0.00018,2]
[347101923,1735498249028,-500.0,0.00018,2]
[347101924,1735498249038,-1158.6785,0.00018,2]
[347101925,1735498249049,-1158.6785,0.00018,2]
[347101926,1735498249059,-23606.54826031,0.00018,2]
[347101927,1735498249069,-1829.9902,0.00018,2]
[347101928,1735498249079,-1829.9902,0.00018,2]
[347101929,1735498249089,-152.0,0.00018032,5]
[347101930,1735498249100,-185.77665162,0.00018038,2]
[347101931,1735498249110,-500.0,0.00018038,2]
[347101932,1735498249122,-500.0,0.00018038,2]
[347101933,1735498249131,-500.0,0.00018038,2]
[347101934,1735498249140,-500.0,0.00018038,2]
[347101935,1735498249149,-1344.0,0.00018055,7]
[347101936,1735498249159,-1344.0,0.00018055,7]
[347101937,1735498249168,-1695.11770604,0.000181,2]
[347101938,1735498249179,-997.07,0.00018105,2]
[347101939,1735498249189,-1358.06,0.00018106,2]
[347101940,1735498249198,-2080.91,0.00018106,2]
[347101941,1735498249207,-920.38,0.00018106,2]
[347101942,1735498249217,-200.0,0.00018107,2]
[347101943,1735498249227,-200.0,0.00018107,2]
[347101944,1735498249237,-1138.0,0.0001811,2]
[347101945,1735498249246,-504.0,0.0001811,2]
[347101946,1735498249256,-903.13,0.00018136,2]
[347101947,1735498249265,-500.0,0.00018152,2]
[347101948,1735498249275,-277.46,0.00018152,2]
[347101949,1735498249284,-500.0,0.00018152,2]
[347101950,1735498249294,-500.0,0.00018152,2]
[347101951,1735498249304,-500.0,0.00018152,2]
[347101952,1735498249313,-1000.0,0.00018172,2]
[347101953,1735498249323,-978.28,0.00018176,2]
[347101954,1735498249333,-978.28,0.00018176,2]
[347101955,1735498249343,-150.0,0.00018176,2]
[347101956,1735498249353,-977.47,0.00018176,2]
[347101957,1735498249362,-150.0,0.00018176,2]
[347101958,1735498249372,-150.0,0.00018176,2]
[347101959,1735498249382,-150.0,0.00018176,2]
[347101960,1735498249391,-172.74810972,0.00018191,2]
[347101961,1735498249400,-758.5,0.00018191,2]
[347101962,1735498249409,-500.0,0.00018191,2]
[347101963,1735498249419,-500.0,0.00018191,2]
[347101964,1735498249429,-1199.92,0.00018191,2]
[347101965,1735498249438,-4489.16219792,0.000182,2]
[347101966,1735498249447,-437.4,0.00018208,2]
[347101967,1735498249456,-437.4,0.00018208,2]
[347101968,1735498249466,-196.37,0.00018208,2]
[347101969,1735498249475,-500.0,0.00018219,2]
[347101970,1735498249485,-500.0,0.00018219,2]
[347101971,1735498249494,-193.31,0.00018219,2]
[347101972,1735498249504,-560.87,0.00018219,2]
[347101973,1735498249513,-616.36,0.00018219,2]
[347101974,1735498249522,-500.0,0.00018219,2]
[347101975,1735498249532,-557.18,0.00018219,2]
[347101976,1735498249543,-500.0,0.00018219,2]
[347101977,1735498249552,-500.0,0.00018219,2]
[347101978,1735498249562,-924.01,0.00018219,2]
[347101979,1735498249572,-500.0,0.00018221,2]
[347101980,1735498249582,-402.39,0.00018221,2]
[347101981,1735498249592,-7275.32599093,0.00018241,2]
[347101982,1735498249607,-1352.51386,0.00018288,7]
[347101983,1735498249617,-500.0,0.00018312,2]
[347101984,1735498249627,-500.0,0.00018312,2]
[347101985,1735498249638,-500.0,0.00018312,2]
[347101986,1735498249647,-500.0,0.00018312,2]
[347101987,1735498249658,-1344.0,0.00018328,7]
[347101988,1735498249667,-1344.0,0.00018328,7]
[347101989,1735498249677,-15523.16502703,0.00018333,2]
[347101990,1735498249687,-175.18964388,0.00018356,2]
[347101991,1735498249696,-82231.64,0.00018356,2]
[347101992,1735498249706,-997.07,0.00018379,2]
[347101993,1735498249715,-1358.06,0.0001838,2]
[347101994,1735498249725,-2080.91,0.0001838,2]
[347101995,1735498249734,-920.38,0.0001838,2]
[347101996,1735498249745,-1138.0,0.00018384,2]